bitfinex-derivatives/quotes_SOLF0:USTF0_20241224
["timestamp","ask_amount","ask_price","bid_price","bid_amount"]
[1735047748032,7.0075,195.01,194.91,4.3758]
[1735047748033,4.44,195.01,194.93,3.88524121]
[1735047748226,2.5677,194.99,194.94,2.5683]
[1735047748527,4.44,195.01,194.91,4.3758]
[1735047748826,7.0075,195.01,194.95,2.5681]
[1735047749426,4.44,195.01,194.9,67.84308389]
[1735047749733,4.44,195.01,194.93,2.5684]
[1735047750435,2.5678,194.98,194.93,2.5684]
[1735047750729,20.2299849,194.97,194.89,67.84308389]
[1735047750928,22.7987849,194.91,194.89,67.84308389]
[1735047751228,4.24,194.9,194.89,57.16138389]
[1735047751435,6.8088,194.9,194.89,56.72638389]
[1735047751632,4.24,194.9,194.87,56.72638389]
[1735047752133,4.24,194.9,194.88,2.5691]
[1735047752334,4.24,194.9,194.87,56.72638389]
[1735047753130,4.24,194.9,194.81,20.2299849]
[1735047753435,4.24,194.9,194.82,3.8916328]
[1735047753634,4.24,194.9,194.83,3.8916328]
[1735047753929,4.24,194.9,194.84,3.8916328]
[1735047754133,4.24,194.9,194.87,2.5691]
[1735047754330,4.24,194.9,194.83,3.8916328]
[1735047754529,4.24,194.9,194.82,3.8916328]
[1735047754827,4.24,194.9,194.83,3.8916328]
[1735047755033,4.24,194.9,194.87,2.5691]
[1735047755730,4.24,194.9,194.82,3.8916328]
[1735047755731,4.24,194.9,194.85,2.5695]
[1735047755931,4.24,194.9,194.8,3.8916328]
[1735047756132,4.24,194.9,194.81,3.8916328]
[1735047756331,4.24,194.9,194.87,2.5692]
[1735047757927,4.24,194.9,194.85,2.5694]
[1735047758131,4.24,194.9,194.79,6.20133854]
[1735047758435,4.24,194.9,194.8,3.88853854]
[1735047758635,4.24,194.9,194.86,2.5693]
[1735047759138,2.5681,194.96,194.79,6.20133854]
[1735047759433,4.24,194.95,194.82,20.2299849]
[1735047759638,6.8083,194.95,194.9,2.5688]
[1735047759836,4.24,194.95,194.83,3.88853854]
[1735047760331,4.24,194.95,194.86,2.5693]
[1735047760534,20.2299849,194.97,194.87,4.4692]
[1735047760732,4.24,194.96,194.87,4.4692]
[1735047761637,2.5682,194.95,194.9,2.5687]
[1735047761935,4.24,194.96,194.9,2.5687]
[1735047762132,4.24,194.96,194.87,4.4692]
[1735047762332,4.24,194.98,194.88,2.3651]
[1735047762731,20.2299849,195.03,194.88,2.3651]
[1735047762932,2.5675,195.01,194.92,2.5685]
[1735047763132,4.24,195.02,194.88,2.3651]
[1735047763737,2.5676,195.0,194.94,2.5682]
[1735047764037,2.5676,195.0,194.88,2.3651]
[1735047764331,4.24,195.02,194.88,2.3651]
[1735047764535,20.2299849,195.0,194.88,2.3651]
[1735047765127,2.5681,194.96,194.9,2.5687]
[1735047765333,4.24,194.95,194.88,2.3651]
[1735047765739,4.24,194.95,194.91,2.5687]
[1735047767036,4.24,194.95,194.79,20.2299849]
[1735047767237,20.2299849,194.94,194.82,2.2038]
[1735047767439,2.569,194.89,194.82,2.2038]
[1735047767939,2.5689,194.9,194.85,2.5694]
[1735047769642,20.2299849,194.94,194.82,2.2038]
[1735047769940,20.2299849,194.91,194.82,2.2038]
[1735047770136,20.2299849,194.91,194.8,2.2461]
[1735047770333,2.5693,194.87,194.82,2.5699]
[1735047770537,4.24,194.86,194.8,2.2461]
[1735047771141,20.2299849,194.91,194.8,2.2461]
[1735047771142,4.24,194.91,194.8,2.2461]
[1735047771836,2.569,194.9,194.83,2.5697]
[1735047772143,2.569,194.9,194.8,2.2461]
[1735047772543,2.569,194.9,194.84,2.5695]
[1735047773342,2.569,194.9,194.85,2.5695]
[1735047776643,2.5691,194.89,194.83,2.5696]
[1735047776846,2.5691,194.89,194.8,2.2461]
[1735047777147,24.4699849,194.92,194.8,2.2461]
[1735047778144,24.4699849,194.92,194.84,2.5696]
[1735047778737,2.5692,194.87,194.83,2.5697]
[1735047779243,4.7047,194.96,194.83,2.5697]
[1735047779440,20.2299849,194.92,194.78,2.2554]
[1735047779944,20.2299849,194.89,194.78,2.2554]
[1735047780247,2.5694,194.86,194.78,2.2554]
[1735047780746,2.5695,194.85,194.78,2.2554]
[1735047780947,20.2299849,194.92,194.78,2.2554]
[1735047781143,2.5681,194.96,194.91,2.5686]
[1735047782241,2.5684,194.93,194.85,2.5694]
[1735047782437,20.2299849,194.97,194.81,20.2299849]
[1735047782848,20.2299849,194.94,194.82,3.90653855]
[1735047783051,20.2299849,194.94,194.79,3.90653855]
[1735047783346,20.2299849,194.94,194.78,2.2554]
[1735047783347,20.2299849,194.94,194.8,3.90653855]
[1735047783542,2.5686,194.93,194.81,3.90653855]
[1735047783747,2.5686,194.93,194.79,3.90653855]
[1735047783951,20.2299849,194.94,194.78,22.4853849]
[1735047784140,2.5686,194.92,194.86,2.5692]
[1735047784448,4.04,194.91,194.8,3.91016214]
[1735047784643,20.2299849,194.94,194.81,3.91016214]
[1735047784849,4.04,194.93,194.82,3.91016214]
[1735047785041,4.04,194.93,194.83,3.91016214]
[1735047785247,4.04,194.93,194.79,3.91016214]
[1735047785445,4.04,194.93,194.8,3.91016214]
[1735047785645,4.04,194.93,194.81,3.91016214]
[1735047785844,4.04,194.93,194.78,22.4853849]
[1735047785845,4.04,194.93,194.82,3.91016214]
[1735047786048,4.04,194.93,194.79,3.91016214]
[1735047786351,4.04,194.93,194.8,3.91016214]
[1735047786542,4.04,194.93,194.81,3.91016214]
[1735047786745,2.569,194.89,194.83,2.5697]
[1735047787148,2.5688,194.91,194.85,2.5695]
[1735047787451,4.04,194.98,194.82,3.91337381]
[1735047787750,57.0351997,195.07,194.86,20.2299849]
[1735047787947,4.04,195.03,194.87,8.31597381]
[1735047788140,4.04,195.02,194.88,3.91337381]
[1735047788340,4.04,195.02,194.95,2.5681]
[1735047788341,2.5675,195.01,194.95,2.5681]
[1735047790151,2.5677,194.99,194.93,2.5683]
[1735047790545,20.2299849,195.01,194.88,2.321]
[1735047790749,2.5679,194.97,194.89,3.91152647]
[1735047790944,2.5679,194.97,194.9,3.91152647]
[1735047791252,2.5679,194.97,194.89,3.91152647]
[1735047791552,20.2299849,195.01,194.89,3.91196137]
[1735047791748,2.568,194.96,194.91,2.5686]
[1735047792457,2.5679,194.97,194.92,2.5685]
[1735047794055,22.7977849,194.98,194.9,3.91320463]
[1735047794353,20.2299849,194.98,194.88,2.321]
[1735047794753,2.568,194.96,194.91,2.5686]
[1735047795051,20.2299849,194.98,194.84,3.91619612]
[1735047795052,24.2699849,194.95,194.84,3.91619612]
[1735047795256,24.2699849,194.95,194.83,3.91786587]
[1735047795460,20.2299849,194.92,194.81,7.02]
[1735047795654,20.2299849,194.92,194.82,3.91908818]
[1735047795862,20.2299849,194.92,194.81,7.02]
[1735047796055,20.2299849,194.92,194.82,3.91863466]
[1735047796252,20.2299849,194.92,194.81,7.02]
[1735047796458,2.5689,194.9,194.81,7.02]
[1735047796655,2.5689,194.9,194.82,3.91842946]
[1735047796856,2.5689,194.9,194.81,7.02]
[1735047797052,4.43,194.94,194.82,3.91798347]
[1735047797251,24.2699849,194.95,194.83,3.91655088]
[1735047797557,6.6082,194.95,194.9,2.5688]
[1735047798954,6.6082,194.95,194.81,7.02]
[1735047798955,2.5687,194.91,194.86,2.5692]
[1735047799155,4.04,194.95,194.81,7.02]
[1735047799156,4.04,194.95,194.82,3.91482915]
[1735047799350,4.04,194.95,194.83,3.9163267]
[1735047799556,2.5686,194.93,194.81,7.02]
[1735047799753,4.04,194.95,194.82,3.91607406]
[1735047800055,4.04,194.95,194.83,3.91607406]
[1735047800249,4.04,194.95,194.81,7.02]
[1735047800250,4.04,194.95,194.84,3.91607406]
[1735047800552,4.04,194.95,194.81,7.02]
[1735047800754,4.04,194.95,194.82,3.91583396]
[1735047800961,4.04,194.95,194.87,2.5691]
[1735047800962,2.5686,194.92,194.87,2.5691]
[1735047801558,4.04,194.95,194.82,3.91565585]
[1735047801863,4.04,194.95,194.81,7.02]
[1735047802157,2.5692,194.88,194.83,2.5697]
[1735047802361,6.6092,194.88,194.81,7.02]
[1735047802763,2.5694,194.86,194.82,2.5699]
[1735047803161,4.04,194.88,194.75,2.3549]
[1735047803162,20.2299849,194.87,194.75,2.3549]
[1735047803359,20.2299849,194.84,194.71,59.53190965]
[1735047803554,20.2299849,194.84,194.72,3.9219037]
[1735047803865,2.5704,194.78,194.71,59.53190965]
[1735047804054,2.5704,194.78,194.72,3.92159846]
[1735047804261,2.5704,194.78,194.71,59.53190965]
[1735047804559,2.5707,194.76,194.71,2.5713]
[1735047804756,20.2299849,194.78,194.68,2.3549]
[1735047804961,2.5713,194.71,194.66,3.92068261]
[1735047805160,2.5713,194.71,194.65,57.62650965]
[1735047805668,2.5713,194.71,194.65,2.5721]
[1735047805868,2.5713,194.71,194.61,3.9178814]
[1735047806564,4.04,194.72,194.59,7.0442]
[1735047806765,4.04,194.72,194.6,20.2299849]
[1735047806970,4.04,194.72,194.6,24.14367079]
[1735047807172,4.04,194.72,194.61,3.91368589]
[1735047808071,4.04,194.72,194.67,2.5718]
[1735047808569,4.04,194.72,194.61,3.91043522]
[1735047808765,4.04,194.72,194.6,20.2299849]
[1735047808766,4.0,194.79,194.66,20.2299849]
[1735047809071,4.0,194.79,194.67,3.90622001]
[1735047809273,4.0,194.79,194.74,2.5709]
[1735047809665,4.0,194.82,194.68,4.662]
[1735047809971,4.0,194.82,194.69,22.4953849]
[1735047810160,4.0,194.82,194.7,3.90622001]
[1735047810361,4.0,194.82,194.75,2.5707]
[1735047810873,2.5703,194.79,194.73,2.571]
[1735047811069,20.2299849,194.81,194.69,2.2654]
[1735047811271,20.2299849,194.78,194.69,2.2654]
[1735047811664,2.5707,194.76,194.7,2.5713]
[1735047811969,4.0,194.75,194.7,2.5713]
[1735047816082,2.571,194.74,194.68,2.5716]
[1735047816385,4.0,194.75,194.68,2.5716]
[1735047816576,24.2299849,194.75,194.65,2.5721]
[1735047817280,4.0,194.75,194.63,2.4242]
[1735047817579,4.0,194.75,194.63,22.6541849]
[1735047818486,4.0,194.75,194.7,2.5713]
[1735047819485,6.5709,194.75,194.7,2.5713]
[1735047819982,20.2299849,194.83,194.66,20.2299849]
[1735047820288,2.5704,194.79,194.67,2.3229]
[1735047820580,2.5704,194.79,194.73,2.5711]
[1735047820786,2.5708,194.75,194.67,2.3229]
[1735047821083,4.0,194.74,194.66,2.572]
[1735047821284,2.5716,194.7,194.63,2.4242]
[1735047821685,2.5716,194.7,194.64,2.5722]
[1735047825880,2.5713,194.72,194.66,2.5719]
[1735047826382,20.2299849,194.76,194.6,20.2299849]
[1735047826588,2.5711,194.74,194.63,20.2299849]
[1735047826787,4.0,194.75,194.64,4.5868]
[1735047827382,4.0,194.75,194.7,2.5715]
[1735047827986,6.5709,194.75,194.7,2.5715]
[1735047828186,4.0,194.75,194.69,2.5716]
[1735047828987,2.571,194.74,194.69,2.5716]
[1735047829582,2.5712,194.73,194.68,2.5717]
[1735047829992,20.2299849,194.73,194.64,4.5868]
[1735047830192,2.5719,194.67,194.62,2.5724]
[1735047830391,2.5719,194.67,194.59,2.2511]
[1735047830985,4.0,194.68,194.59,2.2511]
[1735047831185,4.0,194.68,194.6,12.68809878]
[1735047833089,6.5713,194.72,194.66,2.5719]
[1735047833993,4.0,194.72,194.6,12.68809878]
[1735047834592,2.5716,194.7,194.65,2.572]
[1735047834990,4.0,194.72,194.6,12.68809878]
[1735047835194,2.5714,194.71,194.66,2.572]
[1735047835595,2.5708,194.75,194.71,2.5713]
[1735047835997,4.0,194.76,194.66,12.68809878]
[1735047836294,4.0,194.76,194.67,4.6222]
[1735047836492,4.0,194.76,194.73,2.5711]
[1735047836698,4.0,194.77,194.68,2.3551]
[1735047837296,2.5708,194.75,194.68,2.3551]
[1735047837692,4.0,194.77,194.68,2.3551]
[1735047838098,12.68809878,194.78,194.68,2.3551]
[1735047838298,3.92,194.82,194.69,12.68809878]
[1735047838602,12.68809878,194.84,194.72,12.68809878]
[1735047838794,3.92,194.83,194.72,12.68809878]
[1735047838995,2.5703,194.79,194.74,2.5709]
[1735047839204,3.92,194.79,194.69,81.60680783]
[1735047839394,3.92,194.79,194.69,68.91870905]
[1735047839595,3.92,194.79,194.68,2.3551]
[1735047840202,3.92,194.79,194.72,2.5712]
[1735047840802,2.5706,194.77,194.72,2.5712]
[1735047841502,2.5708,194.76,194.72,2.5712]
[1735047841906,2.5708,194.76,194.68,2.3551]
[1735047842203,2.5708,194.76,194.71,2.5713]
[1735047842409,12.68809878,194.78,194.68,2.3551]
[1735047842602,12.68809878,194.78,194.73,2.571]
[1735047843003,12.68809878,194.78,194.68,2.3551]
[1735047843204,12.68809878,194.72,194.65,68.91870905]
[1735047843402,3.92,194.71,194.65,68.91870905]
[1735047843603,12.68809878,194.69,194.65,68.91870905]
[1735047843803,12.68809878,194.69,194.64,68.91870905]
[1735047844204,2.5719,194.68,194.64,68.91870905]
[1735047844406,12.68809878,194.69,194.64,68.91870905]
[1735047844606,3.92,194.71,194.64,68.91870905]
[1735047844806,3.92,194.71,194.6,2.2498]
[1735047845115,3.92,194.71,194.61,3.91710673]
[1735047845411,3.92,194.71,194.62,3.91710673]
[1735047845604,3.92,194.71,194.65,2.5721]
[1735047845804,3.92,194.71,194.61,68.91870905]
[1735047846006,3.92,194.71,194.62,3.92018762]
[1735047846208,12.68809878,194.75,194.64,12.68809878]
[1735047846504,3.92,194.76,194.65,3.92018762]
[1735047846707,2.5708,194.75,194.7,2.5714]
[1735047847909,3.92,194.76,194.64,12.68809878]
[1735047848111,12.68809878,194.81,194.67,12.68809878]
[1735047848406,3.92,194.8,194.76,2.5707]
[1735047848615,12.68809878,194.84,194.7,12.68809878]
[1735047848804,3.92,194.83,194.71,6.17640323]
[1735047849107,3.92,194.83,194.79,2.5703]
[1735047849311,15.25779878,194.84,194.79,2.5703]
[1735047849510,3.92,194.83,194.79,2.5703]
[1735047850911,12.68809878,194.84,194.74,3.92205265]
[1735047851204,12.68809878,194.87,194.76,12.68809878]
[1735047851408,0.1144,194.99,194.79,12.68809878]
[1735047851606,15.25659878,194.93,194.88,2.5691]
[1735047852202,19.17659878,194.93,194.88,2.5691]
[1735047853814,3.92,194.99,194.85,12.68809878]
[1735047854013,16.60809878,194.99,194.85,12.68809878]
[1735047854207,2.568,194.97,194.9,2.5687]
[1735047854413,3.92,194.96,194.84,3.91279734]
[1735047854610,3.92,194.96,194.83,20.24155346]
[1735047854808,2.5684,194.94,194.87,2.5691]
[1735047855004,22.80995346,194.94,194.87,2.5691]
[1735047855213,20.24155346,194.94,194.87,2.5691]
[1735047855410,20.24155346,194.94,194.88,2.5691]
[1735047855606,2.5683,194.95,194.81,2.2562]
[1735047855814,2.5683,194.95,194.81,6.15966593]
[1735047856015,2.5683,194.95,194.88,2.569]
[1735047858820,3.92,194.94,194.88,2.569]
[1735047860507,3.92,194.94,194.81,6.15966593]
[1735047860713,3.92,194.94,194.89,2.5689]
[1735047861009,3.92,194.96,194.83,24.16155346]
[1735047861211,20.24155346,195.0,194.86,20.24155346]
[1735047861415,3.92,194.99,194.86,20.24155346]
[1735047861806,6.4877,194.99,194.86,20.24155346]
[1735047863515,6.4877,194.99,194.83,24.16155346]
[1735047864420,3.92,194.99,194.83,24.16155346]
[1735047864618,2.5679,194.98,194.83,24.16155346]
[1735047864816,20.24155346,194.98,194.83,20.24155346]
[1735047865018,20.24155346,194.98,194.81,2.2562]
[1735047865218,2.5683,194.94,194.81,2.2562]
[1735047865415,3.92,194.93,194.81,2.2562]
[1735047865623,3.92,194.93,194.86,2.5692]
[1735047865819,6.4885,194.93,194.86,2.5692]
[1735047866925,2.5686,194.92,194.86,2.5692]
[1735047867223,2.5686,194.92,194.81,2.2562]
[1735047867224,2.5686,194.92,194.87,2.5692]
[1735047868420,20.24155346,194.92,194.81,2.2562]
[1735047868926,20.24155346,194.89,194.74,20.24155346]
[1735047869122,20.24155346,194.89,194.81,2.57]
[1735047869528,20.24155346,194.89,194.75,7.0064]
[1735047869827,2.5697,194.84,194.79,2.5702]
[1735047870320,3.94,194.85,194.75,7.0064]
[1735047870523,3.94,194.85,194.71,20.24155346]
[1735047870524,2.5701,194.81,194.76,2.5706]
[1735047871026,20.24155346,194.83,194.69,2.2369]
[1735047871219,20.24155346,194.8,194.69,2.2369]
[1735047871421,20.24155346,194.77,194.67,4.7695]
[1735047872131,2.5711,194.73,194.67,4.7695]
[1735047872332,20.24155346,194.77,194.67,4.7695]
[1735047872333,3.94,194.72,194.67,4.7695]
[1735047873032,20.24155346,194.8,194.67,4.7695]
[1735047873331,20.24155346,194.83,194.69,20.24155346]
[1735047873528,3.94,194.82,194.69,20.24155346]
[1735047873733,3.94,194.82,194.79,2.5702]
[1735047874027,3.94,194.82,194.72,20.24155346]
[1735047874233,3.94,194.82,194.75,20.24155346]
[1735047874427,3.94,194.82,194.76,4.8227]
[1735047875529,3.94,194.82,194.81,2.57]
[1735047875931,3.94,194.88,194.76,4.8227]
[1735047876124,3.94,194.88,194.78,20.24155346]
[1735047876532,20.24155346,194.95,194.78,20.24155346]
[1735047876733,3.94,194.94,194.78,20.24155346]
[1735047877732,2.5687,194.92,194.85,2.5694]
[1735047877935,3.94,194.94,194.78,20.24155346]
[1735047878933,3.94,194.93,194.79,3.8908889]
[1735047879130,3.94,194.93,194.9,2.5688]
[1735047879335,3.94,194.93,194.81,20.24155346]
[1735047879636,3.94,194.96,194.82,6.30985401]
[1735047880231,3.94,194.96,194.82,2.4194]
[1735047881134,2.5688,194.91,194.86,2.5694]
[1735047882530,3.94,194.96,194.84,2.5696]
[1735047882841,3.94,194.96,194.82,2.4194]
[1735047883038,2.5685,194.93,194.87,2.5691]
[1735047883336,3.94,194.96,194.82,2.4194]
[1735047884235,2.5686,194.93,194.87,2.5692]
[1735047884439,3.94,194.92,194.87,2.5692]
[1735047886333,0.1114,195.06,194.82,2.4194]
[1735047886541,73.66155346,195.0,194.84,20.24155346]
[1735047886831,73.66155346,195.0,194.93,2.5684]
[1735047886832,2.5679,194.98,194.93,2.5684]
[1735047887039,6.5079,194.98,194.93,2.5684]
[1735047887231,3.94,194.98,194.85,4.7251]
[1735047888137,2.568,194.97,194.85,4.7251]
[1735047888836,2.568,194.97,194.92,2.5685]
[1735047889034,2.568,194.97,194.85,8.62203612]
[1735047889834,73.66155346,195.0,194.85,8.62203612]
[1735047890031,3.94,194.96,194.85,8.62203612]
[1735047890728,3.94,194.96,194.88,2.5691]
[1735047890928,3.94,194.96,194.85,8.62203612]
[1735047891233,3.94,194.96,194.88,2.5691]
[1735047891434,3.94,194.96,194.85,8.62203612]
[1735047891630,53.42,195.0,194.85,8.62203612]
[1735047891837,6.5073,195.02,194.97,2.5678]
[1735047892041,3.94,195.03,194.91,6.32079849]
[1735047892436,6.5071,195.03,194.98,2.5677]
[1735047892636,3.94,195.03,194.91,6.32079849]
[1735047892843,24.18155346,195.03,194.91,2.4207]
[1735047893335,20.24155346,195.0,194.87,3.90009849]
[1735047893540,20.24155346,194.97,194.86,3.90009849]
[1735047893742,3.94,194.96,194.85,7.0991]
[1735047893941,2.5686,194.93,194.87,2.5691]
[1735047895433,3.94,194.96,194.85,7.0991]
[1735047895638,20.24155346,194.94,194.85,7.0991]
[1735047896740,2.5687,194.91,194.87,2.5692]
[1735047897447,2.5688,194.9,194.86,2.5694]
[1735047897944,3.94,194.89,194.86,2.5694]
[1735047899046,3.94,194.89,194.8,6.34172906]
[1735047899238,3.94,194.89,194.85,2.5694]
[1735047899846,6.509,194.89,194.85,2.5694]
[1735047900039,3.94,194.89,194.83,2.5697]
[1735047900244,12.66489257,194.88,194.79,4.7293]
[1735047900444,2.5696,194.85,194.79,4.7293]
[1735047901041,2.5694,194.86,194.82,2.5698]
[1735047901345,12.66489257,194.88,194.79,4.7293]
[1735047902249,15.23409257,194.88,194.83,2.5697]
[1735047902648,2.2502,194.98,194.81,12.66489257]
[1735047902845,16.56489257,194.97,194.84,12.66489257]
[1735047903050,16.56489257,194.97,194.85,2.2095]
[1735047904148,3.9,194.97,194.85,2.2095]
[1735047904643,2.5682,194.95,194.9,2.5688]
[1735047904954,2.5681,194.96,194.91,2.5687]
[1735047905145,3.9,194.97,194.86,20.24247514]
[1735047905447,3.9,194.97,194.86,24.15366879]
[1735047905751,3.9,194.99,194.87,3.90689122]
[1735047905953,3.9,194.99,194.88,4.4815]
[1735047906151,2.5678,194.98,194.94,2.5683]
[1735047906448,3.9,194.98,194.88,8.39065393]
[1735047906653,3.9,194.98,194.88,4.4815]
[1735047906954,3.9,194.98,194.88,8.39065393]
[1735047907152,3.9,194.98,194.88,4.4815]
[1735047908051,2.5682,194.95,194.9,2.5688]
[1735047908553,2.568,194.97,194.92,2.5686]
[1735047908753,2.568,194.97,194.88,4.4815]
[1735047908942,3.9,194.98,194.88,4.4815]
[1735047909453,6.4678,194.98,194.88,4.4815]
[1735047909855,2.5678,194.98,194.92,2.5684]
[1735047910154,2.5678,194.98,194.88,4.4815]
[1735047910553,3.9,194.99,194.95,2.5681]
[1735047910854,3.9,194.99,194.88,4.4815]
[1735047911655,2.5681,194.96,194.91,2.5687]
[1735047917055,20.24247514,194.97,194.88,2.569]
[1735047917360,20.24247514,194.94,194.84,3.91976081]
[1735047917561,20.24247514,194.91,194.81,55.05440965]
[1735047917761,2.5691,194.89,194.84,2.5695]
[1735047918354,20.24247514,194.91,194.79,2.2646]
[1735047918560,2.5695,194.86,194.79,2.2646]
[1735047918758,3.9,194.85,194.79,2.2646]
[1735047919364,3.9,194.85,194.8,3.92592081]
[1735047919566,3.9,194.85,194.79,2.2646]
[1735047919765,3.9,194.85,194.8,3.925577]
[1735047919966,3.9,194.85,194.79,2.2646]
[1735047920166,3.9,194.85,194.8,3.92584711]
[1735047920465,3.9,194.85,194.84,2.5696]
[1735047920964,3.9,194.85,194.79,2.2646]
[1735047921161,3.9,194.85,194.74,4.5717]
[1735047921162,3.9,194.85,194.77,3.9272128]
[1735047921365,3.9,194.85,194.74,62.03200965]
[1735047921559,3.9,194.85,194.75,3.92705929]
[1735047921761,2.5698,194.83,194.78,2.5704]
[1735047921959,24.14247514,194.85,194.75,3.92705929]
[1735047922161,24.14247514,194.85,194.74,62.03200965]
[1735047922362,2.5699,194.82,194.77,2.5704]
[1735047922668,3.9,194.85,194.74,6.9776]
[1735047923464,3.9,194.85,194.81,2.57]
[1735047923465,3.9,194.84,194.81,2.57]
[1735047923763,3.9,194.84,194.75,3.92716365]
[1735047924257,6.4696,194.84,194.79,2.5702]
[1735047924462,3.9,194.84,194.75,3.92309594]
[1735047924671,3.9,194.84,194.76,3.92309594]
[1735047924855,3.9,194.84,194.81,2.57]
[1735047925053,3.9,194.84,194.76,3.92309594]
[1735047925255,2.5699,194.83,194.78,2.5703]
[1735047925453,3.9,194.84,194.75,3.92309594]
[1735047925654,3.9,194.84,194.74,10.90069594]
[1735047925861,6.4696,194.84,194.79,2.5702]
[1735047926659,2.5698,194.83,194.79,2.5702]
[1735047927059,3.9,194.84,194.78,2.5704]
[1735047927665,3.9,194.84,194.74,6.9776]
[1735047927860,12.66680618,194.83,194.74,6.9776]
[1735047928059,2.5702,194.8,194.74,6.9776]
[1735047928267,12.66680618,194.83,194.78,2.5704]
[1735047928660,2.57,194.82,194.78,2.5704]
[1735047928866,12.66680618,194.83,194.77,2.5705]
[1735047929068,12.66680618,194.83,194.74,6.9776]
[1735047929260,2.5703,194.79,194.74,6.9776]
[1735047929767,12.66680618,194.83,194.74,2.4059]
[1735047930163,12.66680618,194.83,194.7,12.66680618]
[1735047930364,2.5704,194.79,194.74,2.5708]
[1735047930564,3.78,194.78,194.74,2.5708]
[1735047930768,3.78,194.78,194.7,12.66680618]
[1735047931063,3.78,194.82,194.7,12.66680618]
[1735047931562,16.44680618,194.82,194.7,12.66680618]
[1735047931768,16.44680618,194.82,194.7,16.58680066]
[1735047931959,16.44680618,194.82,194.7,12.66680618]
[1735047932169,2.5704,194.78,194.74,2.5708]
[1735047932461,2.5704,194.78,194.7,12.66680618]
[1735047932663,3.78,194.82,194.7,12.66680618]
[1735047932969,181.0351997,195.01,194.7,12.66680618]
[1735047932970,3.78,194.85,194.73,12.66680618]
[1735047933268,3.78,194.86,194.8,2.5701]
[1735047933662,3.78,194.86,194.73,3.91368469]
[1735047933865,12.66680618,194.85,194.78,2.5703]
[1735047934063,12.66680618,194.85,194.72,12.66680618]
[1735047934262,2.5703,194.79,194.75,2.5708]
[1735047934470,3.78,194.78,194.75,2.5708]
[1735047934768,3.78,194.78,194.67,2.2788]
[1735047934769,2.5708,194.76,194.72,2.5712]
[1735047936067,12.66680618,194.73,194.67,2.2788]
[1735047936264,3.78,194.72,194.66,4.7327]
[1735047936662,2.5713,194.71,194.66,7.3047]
[1735047937364,3.78,194.72,194.69,2.5716]
[1735047937666,3.78,194.72,194.66,4.7327]
[1735047938769,3.78,194.72,194.69,2.5715]
[1735047939165,3.78,194.72,194.66,4.7327]
[1735047939467,12.66680618,194.7,194.61,2.3389]
[1735047939669,2.5716,194.69,194.61,2.3389]
[1735047940572,2.5716,194.69,194.64,2.5723]
[1735047941368,12.66680618,194.7,194.66,2.5719]
[1735047942471,2.5716,194.69,194.64,2.5722]
[1735047943273,12.66680618,194.7,194.62,2.5724]
[1735047943761,2.572,194.67,194.62,2.5724]
[1735047943966,3.78,194.66,194.62,2.5724]
[1735047944363,3.78,194.66,194.64,2.5722]
[1735047945173,3.78,194.66,194.61,2.3389]
[1735047945565,6.3515,194.71,194.67,2.5719]
[1735047946163,3.78,194.71,194.61,15.00570618]
[1735047946367,3.78,194.71,194.61,2.3389]
[1735047946772,2.5717,194.69,194.64,2.5723]
[1735047946974,12.66680618,194.7,194.61,2.3389]
[1735047947377,2.572,194.67,194.61,2.3389]
[1735047948178,2.5717,194.69,194.64,2.5722]
[1735047948377,12.66680618,194.7,194.61,2.3389]
[1735047948568,3.78,194.71,194.61,2.3389]